Cogmind - Beta 14 @@@ ROGUE MODE // 2025.03.10 @ 17:16:24 Player: beter Result: Self-destructed Performance ------------- Evolutions (2) 1000 Regions Visited (5) 1000 Robots Destroyed (8) 40 Value Destroyed (162) 162 Prototype IDs (24) 480 Alien Tech Used (0) 0 Bonus (300) 300 TOTAL SCORE: 2982 Bonus ------- Aligned with FarCom 300 Cogmind --------- Core Integrity 519/550 Matter 429/450 Energy 110/125 System Corruption 0% Temperature Cool (0) Movement Walking (190) Ox1 Location -8/Materials Parts ------- > --- POWER (1) -------- Light Ion Engine > --- PROPULSION (3) --- Aluminum Leg Aluminum Leg > --- UTILITY (3) ------ Small Storage Unit Large Matter Pod > --- WEAPON (4) ------- EM Pulse Cannon YOLO Cannon Minigun > --- INVENTORY (8) ---- Ion Engine Light Treads Light Treads Medium Laser Latent Energy Streamer Peak State ------------ > --- POWER ------------ Light Ion Engine > --- PROPULSION ------- Aluminum Leg Aluminum Leg > --- UTILITY ---------- Small Storage Unit Large Matter Pod > --- WEAPON ----------- EM Pulse Cannon YOLO Cannon Minigun > --- INVENTORY -------- Ion Engine Light Treads Light Treads Chronowheel Medium Laser Latent Energy Streamer [Rating: 33] Favorites ----------- Power Light Ion Engine Engine Light Ion Engine Propulsion Aluminum Leg Leg Aluminum Leg Utility Small Storage Unit Storage Small Storage Unit Weapon Assault Rifle Energy Gun Medium Laser Energy Cannon EM Pulse Cannon Ballistic Gun Assault Rifle Launcher Grenade Launcher Build | -11 -10 -10 -10 -9 -8 ------- Run | Yrd Mat Min Exi Min Mat Slots Evolved 4 | . . . . . 4 Power . | . . . . . . Propulsion 1 | . . . . . 1 Utility 1 | . . . . . 1 Weapon 2 | . . . . . 2 Parts Attached 13 | 6 . 1 1 . 5 Power 2 | 1 . 1 . . . Engine 2 | 1 . 1 . . . Core . | . . . . . . Reactor . | . . . . . . Propulsion 2 | 2 . . . . . Treads . | . . . . . . Leg 2 | 2 . . . . . Wheel . | . . . . . . Hover . | . . . . . . Flight . | . . . . . . Utility 2 | 1 . . 1 . . Device . | . . . . . . Storage 2 | 1 . . 1 . . Processor . | . . . . . . Hackware . | . . . . . . Protection . | . . . . . . Artifact . | . . . . . . Weapon 7 | 2 . . . . 5 Energy Gun 2 | 1 . . . . 1 Energy Cannon 2 | . . . . . 2 Ballistic Gun 2 | 1 . . . . 1 Ballistic Cannon . | . . . . . . Launcher 1 | . . . . . 1 Special Weapon . | . . . . . . Impact Weapon . | . . . . . . Slashing Weapon . | . . . . . . Piercing Weapon . | . . . . . . Special Melee Weapon . | . . . . . . Unidentified Prototypes 1 | . . . . . 1 Parts Lost . | . . . . . . Power . | . . . . . . Propulsion . | . . . . . . Utility . | . . . . . . Weapon . | . . . . . . Highest Loss Streak . | . . . . . . To Critical Strikes . | . . . . . . Average Slot Usage (%) 84 | . 85 85 86 100 75 Engine 12 | . 14 14 14 14 9 Leg 25 | . 28 28 28 28 18 Storage 17 | . 14 14 14 28 18 Energy Gun 10 | . 14 14 14 14 1 Energy Cannon 1 | . . . . . 5 Ballistic Gun 14 | . 14 14 14 14 16 Launcher 2 | . . . . . 7 Peak Build Rating 33 | 6 7 7 11 11 33 Average Rating 10 | 5 6 6 7 11 17 On Entrance 7 | . 6 7 7 11 11 Naked Turns . | . . . . . . Heaviest Build 38 | 12 12 12 15 15 38 Greatest Support 20 | 20 20 20 20 20 20 Greatest Overweight (x) 2 | 2 . . . . 1 Average Overweight (x) . | . . . . . . Largest Inventory Capacity 8 | 8 8 8 8 8 8 Average Capacity 7 | 7 8 8 8 8 8 Most Carried 8 | 6 8 8 8 8 8 Average Carried 7 | 3 7 7 7 8 7 Final Capacity 8 | 8 8 8 8 8 8 Final Carried 8 | 6 8 8 8 8 5 Class Distribution -------------------- 71% | Mutant 28% | Skirmisher Dominant Class ---------------- Mutant | -10/Materials Mutant | -10/Mines Mutant | -10/Exiles Mutant | -9/Mines Skirmisher | -8/Materials Resources | -11 -10 -10 -10 -9 -8 ----------- Run | Yrd Mat Min Exi Min Mat Matter Collected 439 | 260 3 19 10 . 147 Remotely . | . . . . . . Salvage Created 241 | . 10 15 . . 216 Parts 12 | . 2 . . . 10 Haulers Intercepted . | . . . . . . Recyclers Shooed . | . . . . . . Parts Field Recycled . | . . . . . . Retrieved Matter . | . . . . . . Parts Self-Destructed . | . . . . . . Prevented . | . . . . . . Kills | -11 -10 -10 -10 -9 -8 ------- Run | Yrd Mat Min Exi Min Mat Combat Hostiles Destroyed 6 | . . 1 . . 5 Guns 4 | . . 1 . . 3 Cannons 2 | . . . . . 2 Classes Destroyed 5 | . 1 1 . . 3 Recycler 1 | . . . . . 1 Operator 1 | . 1 . . . . Swarmer 4 | . . 1 . . 3 Sentry 1 | . . . . . 1 Hunter 1 | . . . . . 1 Best Kill Streak 3 | . 1 1 . . 3 Combat Bots Only 3 | . . 1 . . 3 Max Kills in Single Turn 2 | . 1 1 . . 2 Gunslinging . | . . . . . . Exploded . | . . . . . . Melee . | . . . . . . Uniques/NPCs Destroyed . | . . . . . . Combat | -11 -10 -10 -10 -9 -8 -------- Run | Yrd Mat Min Exi Min Mat Hostile Shots Fired 63 | . . 7 . . 56 Missed 17 | . . 3 . . 14 Damage Taken 506 | . . 28 . . 478 Core 37 | . . 6 . . 31 Absorbed by Shields . | . . . . . . Core Remaining (%) 98 | 100 . . . 97 . Volleys Fired 22 | . 1 3 . . 18 Largest 3 | . 2 2 . . 3 Hottest 188 | . 70 70 . . 188 Shots Fired 51 | . 2 6 . . 43 Gun 38 | . 2 6 . . 30 Cannon 13 | . . . . . 13 Launcher . | . . . . . . Special . | . . . . . . Kinetic 34 | . 1 3 . . 30 Thermal 7 | . 1 3 . . 3 Explosive . | . . . . . . Electromagnetic 10 | . . . . . 10 Robot Hit Streak 5 | . 1 1 . . 5 Robot Miss Streak 4 | . 1 3 . . 4 Penetration Max . | . . . . . . Secondary Targets 1 | . . 1 . . . Max Gunslinging Chain 1 | . . 1 . . . Shots Hit Robots 24 | . 1 1 . . 22 Core Hits 9 | . 1 1 . . 7 Critical Kills . | . . . . . . Critical Parts Destroyed . | . . . . . . Critical Strikes . | . . . . . . Melee Attacks . | . . . . . . Impact . | . . . . . . Slashing . | . . . . . . Piercing . | . . . . . . Sneak Attacks . | . . . . . . Combat Hostiles . | . . . . . . Follow-up Attacks . | . . . . . . Damage Inflicted 635 | . 15 15 . . 605 Guns 302 | . 15 12 . . 275 Cannons 259 | . . . . . 259 Explosions 71 | . . . . . 71 Melee . | . . . . . . Ramming 3 | . . 3 . . . Kinetic 290 | . 15 . . . 275 Thermal 208 | . . 12 . . 196 Explosive . | . . . . . . Electromagnetic 134 | . . . . . 134 Impact . | . . . . . . Slashing . | . . . . . . Piercing . | . . . . . . Highest Corruption . | . . . . . . Average Corruption . | . . . . . . Corruption Purged . | . . . . . . Corruption Blocked . | . . . . . . Overload Shots . | . . . . . . Overflow Damage 7 | . . . . . 7 Projectiles 7 | . . . . . 7 Explosions . | . . . . . . Melee . | . . . . . . Knockbacks . | . . . . . . Impact . | . . . . . . Kinetic . | . . . . . . Secondary . | . . . . . . Self-Inflicted Damage . | . . . . . . Shots . | . . . . . . Rammed . | . . . . . . Targets Rammed 2 | . . 2 . . . Kicked 2 | . . 2 . . . Crushed . | . . . . . . Highest Temperature 198 | . 9 27 . . 198 Average Temperature 44 | . 6 14 . . 51 Received Heat Transfer 72 | . . . . . 72 Siege Activations . | . . . . . . Robots Corrupted . | . . . . . . Combat Hostiles . | . . . . . . Parts Fried . | . . . . . . Impact Corruptions . | . . . . . . Robots Melted . | . . . . . . Combat Hostiles . | . . . . . . Parts Melted 1 | . . 1 . . . Heat Transferred 117 | . . 37 . . 80 Parts Sabotaged . | . . . . . . Parts Stolen . | . . . . . . Parts Stripped . | . . . . . . Power Chain Reactions . | . . . . . . Alert | -11 -10 -10 -10 -9 -8 ------- Run | Yrd Mat Min Exi Min Mat Peak Influence 148 | . 40 45 . . 148 Initial 15 | . . 15 . . . Average 22 | . 24 44 . . 27 Maximum Alert Level . | . . . . . . Low Security (%) 100 | 100 100 100 . 100 100 Level 1 . | . . . . . . Level 2 . | . . . . . . Level 3 . | . . . . . . Level 4 . | . . . . . . Level 5 . | . . . . . . High Security . | . . . . . . Max Security . | . . . . . . Squads Dispatched . | . . . . . . Investigation . | . . . . . . Extermination . | . . . . . . Reinforcement . | . . . . . . Assault . | . . . . . . Garrison . | . . . . . . Intercept . | . . . . . . Searches Triggered . | . . . . . . Construction Impeded . | . . . . . . Haulers Reinforced . | . . . . . . Active Scanning Responses . | . . . . . . Cargo Convoy Interrupts . | . . . . . . Stealth | -11 -10 -10 -10 -9 -8 --------- Run | Yrd Mat Min Exi Min Mat Distress Signals . | . . . . . . Communications Jammed . | . . . . . . Distress Signals . | . . . . . . Times Spotted 18 | . 2 4 . . 12 Peak Tracking Total 5 | . 1 3 . . 5 Tactical Retreats 1 | . 1 . . . . Traps | -11 -10 -10 -10 -9 -8 ------- Run | Yrd Mat Min Exi Min Mat Traps Triggered . | . . . . . . Indirectly . | . . . . . . Trap Hack Attempts . | . . . . . . Triggered . | . . . . . . Disarmed . | . . . . . . Reprogrammed . | . . . . . . Reused . | . . . . . . Traps Extracted . | . . . . . . Installed . | . . . . . . Triggered . | . . . . . . Machines | -11 -10 -10 -10 -9 -8 ---------- Run | Yrd Mat Min Exi Min Mat Machines Disabled . | . . . . . . Max in Single Turn . | . . . . . . Machines Repaired . | . . . . . . Machines Dismantled . | . . . . . . Machines Sabotaged . | . . . . . . Overloaded Fab Kills . | . . . . . . Hacking | -11 -10 -10 -10 -9 -8 --------- Run | Yrd Mat Min Exi Min Mat Machines Accessed 5 | . 3 . 2 . . Terminals 2 | . 2 . . . . Fabricators . | . . . . . . Repair Stations . | . . . . . . Recycling Units 1 | . 1 . . . . Scanalyzers . | . . . . . . Garrison Access . | . . . . . . Total Hacks 19 | . 9 . 10 . . Successful 13 | . 3 . 10 . . Failed 6 | . 6 . . . . Catastrophic . | . . . . . . Database Lockouts . | . . . . . . Manual 1 | . . . 1 . . Terminals 7 | . 7 . . . . Fabricators . | . . . . . . Repair Stations . | . . . . . . Recycling Units 2 | . 2 . . . . Scanalyzers . | . . . . . . Garrison Access . | . . . . . . Terminal Hacks 11 | . 1 . 10 . . Record 9 | . . . 9 . . Zone Layout 1 | . 1 . . . . Derelict Proto ID Bank 1 | . . . 1 . . Fabricator Hacks . | . . . . . . Repair Station Hacks . | . . . . . . Recycling Unit Hacks 2 | . 2 . . . . Process 1 | . 1 . . . . Report Inventory 1 | . 1 . . . . Scanalyzer . | . . . . . . Garrison Access Hacks . | . . . . . . Unauthorized Hacks . | . . . . . . Terminals . | . . . . . . Fabricators . | . . . . . . Repair Stations . | . . . . . . Recycling Units . | . . . . . . Scanalyzers . | . . . . . . Garrison Access . | . . . . . . Data Cores Recovered 1 | . 1 . . . . Used 1 | . 1 . . . . Hacking Detections 3 | . 3 . . . . Full Trace Events . | . . . . . . Feedback Events . | . . . . . . Feedback Blocked . | . . . . . . Robot Schematics Acquired . | . . . . . . Robots Built . | . . . . . . Authchips . | . . . . . . Time . | . . . . . . Total Robot Build Rating . | . . . . . . Part Schematics Acquired . | . . . . . . Parts Built . | . . . . . . Authchips . | . . . . . . Time . | . . . . . . Total Part Build Rating . | . . . . . . Parts Repaired . | . . . . . . Time . | . . . . . . Parts Recycled . | . . . . . . Recycled Matter 15 | . 15 . . . . Retrieved Matter . | . . . . . . Retrieved Components . | . . . . . . Parts Scanalyzed . | . . . . . . Part Schematics Acquired . | . . . . . . Parts Damaged . | . . . . . . Bothacking | -11 -10 -10 -10 -9 -8 ------------ Run | Yrd Mat Min Exi Min Mat Used RIF Installer . | . . . . . . Robots Hacked . | . . . . . . Non-combat . | . . . . . . Combat . | . . . . . . Robot Hacks Applied . | . . . . . . Relay Couplers Released . | . . . . . . Fabnet Peak Effective % . | . . . . . . Robots Rewired . | . . . . . . Allies Hacked . | . . . . . . Hacks Repelled . | . . . . . . Allies | -11 -10 -10 -10 -9 -8 -------- Run | Yrd Mat Min Exi Min Mat Total Allies . | . . . . . . Largest Group . | . . . . . . Highest-Rated Group . | . . . . . . Highest-Rated Ally . | . . . . . . Total Orders . | . . . . . . Ally Attacks . | . . . . . . Total Damage . | . . . . . . Kills . | . . . . . . Allies Corrupted . | . . . . . . Allies Melted . | . . . . . . Intel | -11 -10 -10 -10 -9 -8 ------- Run | Yrd Mat Min Exi Min Mat Robot Analysis Total . | . . . . . . Derelict Logs Recovered . | . . . . . . Drone Launches . | . . . . . . Drone Recoveries . | . . . . . . Exploration | -11 -10 -10 -10 -9 -8 ------------- Run | Yrd Mat Min Exi Min Mat Turns Passed 2094 | 97 180 156 855 201 605 Spaces Moved 1220 | 58 138 115 708 100 101 Core 7 | 7 . . . . . Treads . | . . . . . . Legs 1213 | 51 138 115 708 100 101 Wheels . | . . . . . . Hover . | . . . . . . Flight . | . . . . . . Fastest Speed 50 | 50 120 120 120 120 120 Average Speed 123 | 118 120 120 120 120 161 Slowest Speed 190 | 150 120 120 120 120 190 Overloaded Moves . | . . . . . . Propulsion Burnouts . | . . . . . . Robots Hopped . | . . . . . . Cave-ins Triggered . | . . . . . . Time Travels 1 | . . . . . 1 Exploration Rate (%) 32 | 4 28 36 85 30 12 Regions Visited 5 Branch Regions 3 Pre-discovered Areas . | . . . . . . Known Exits Taken . | . . . . . . Unknown Exits Taken 5 | 1 1 1 1 1 . Scrap Searched . | . . . . . . Spaces Dug . | . . . . . . Terrain Destroyed 47 | . . . . . 47 Melee . | . . . . . . Projectile 2 | . . . . . 2 AOE 45 | . . . . . 45 Terrain Rammed . | . . . . . . Walls Destroyed . | . . . . . . Machines Disabled . | . . . . . . Actions | -11 -10 -10 -10 -9 -8 --------- Run | Yrd Mat Min Exi Min Mat Total 1758 | 83 150 126 715 181 503 Wait 484 | 14 10 4 . 82 374 Move 1215 | 57 137 114 707 99 101 Hop . | . . . . . . Pick Up 14 | 6 2 1 3 . 2 Fast Attach 8 | 6 . . 1 . 1 Attach 3 | . . . . . 3 Detach . | . . . . . . Swap 2 | . . 1 . . 1 Drop 8 | . . 1 4 . 3 Fire 22 | . 1 3 . . 18 Melee . | . . . . . . Ram . | . . . . . . Kick 2 | . . 2 . . . Crush . | . . . . . . Escape Stasis . | . . . . . . Rewire . | . . . . . . Trap . | . . . . . . Miscellaneous . | . . . . . . Route ------- -11/Scrapyard -10/Materials (discovered 2 exits: [Mat] / [*Min]) -10/Mines (discovered 2 exits: [*Mat] / *Exi) -10/Exiles -9/Mines -8/Materials History --------- Turn | Location | Event 15 | -11/Scrapyard | Discovered new exit (range 15) 98 | -11/Scrapyard | Entered Materials 192 | -10/Materials | Discovered new exit (range 14) 218 | -10/Materials | Met 8R-AWN 258 | -10/Materials | Discovered new exit (range 16) 278 | -10/Materials | Entered Mines 281 | -10/Mines | Followed 8R-AWN into the Mines 294 | -10/Mines | Discovered new exit (range 13) 308 | -10/Mines | Build established: Mutant 356 | -10/Mines | YI-UF0 nonchalantly dropped a Grenade Launcher on the ground 428 | -10/Mines | Discovered new exit (range 5) 434 | -10/Mines | Entered Exiles 464 | -10/Exiles | Welcomed by 8R-AWN 485 | -10/Exiles | Met EX-HEX 529 | -10/Exiles | Met EX-BIN 696 | -10/Exiles | Met EX-DEC 735 | -10/Exiles | Visited The Gauntlet 886 | -10/Exiles | Discovered new exit (range 10) 1044 | -10/Exiles | Aligned with FarCom system 1045 | -10/Exiles | Given EX-Vault access code 1102 | -10/Exiles | Opened EX-Vault 1109 | -10/Exiles | Found YOLO Cannon 1111 | -10/Exiles | Found Latent Energy Streamer 1119 | -10/Exiles | Found Chronowheel 1147 | -10/Exiles | Warned to stay clear of 0b10 Research branches 1289 | -10/Exiles | Stole three prototypes: Chronowheel, Latent Energy Streamer, YOLO Cannon 1289 | -10/Exiles | Entered Mines 1307 | -9/Mines | Met a Derelict bent on vengeance 1482 | -9/Mines | Discovered new exit (range 7) 1490 | -9/Mines | Entered Materials 1490 | -8/Materials | Evolved 4 slots: Propulsion x1, Utility x1, Weapon x2 1798 | -8/Materials | Build established: Skirmisher 2068 | -8/Materials | Activated Chronowheel 2068 | -8/Materials | Spacetime reconverged on an earlier point 2095 | -8/Materials | Self-destructed Last Messages --------------- 02020_ Penetrated by Slug. 02029_ H-55 Commando destroyed. 02029_ R-06 Scavenger destroyed. 02032_ Critical hit (Burn: +37). 02051_ Y-45 Defender destroyed. 02054_ K-01 Serf collects debris. 02064_ Acquired 35 matter. 02066_ Acquired 66 matter. 02068_ Spacetime feels normal again. 02068_ Spacetime reconverges on this point. 02073_ K-01 Serf collects debris. 02073_ R-06 Scavenger collects Faulty Adv. Beam Rifle. 02078_ K-01 Serf collects debris. 02079_ R-06 Scavenger collects Corrupted Lgt. Treads. 02083_ K-01 Serf collects debris. 02095_ C-30 ARC bursts open, deploying its payload. 02095_ S-10 Pest unfolds itself. Map ----- +----------------------------------------------------+ | ???????????????????????????????????????????? | | ???????????????????????????????????????????? | | ???????????????????????????????????????????? | | ???????????????????????????????????????????? | | ???????????????????????????????????????????? | | ???????????????????????????????????????????? | | ???????????????????????????????????????????? | | ???????????????????????????????????????????? | | ???????????????????????????????????????????? | | ???????????????????????????????????????????? | | ???????????????????????????????????????????? | | ??????????????? ????????????????????????? | | ??????????????? ????????????????????????? | | ???????????????# ##??????????w???????????? | | ???????????+#### " ??????????????????????? | | ???????????? ; " ??????w???????????????? | | ????????????? ; ??????????????????????? | | ????????????? ; " ??????????????????????? | | ?????????????? ; "???????????????????????? | | ???????????????; "???????????????????????? | | ???????????????# "??????""???????????????? | | ???????????????# #?????""" #?????????? | | ???????????????# #???? """ #?????????? | | ????????######## #### u #?????????? | | ????????# # #?????????? | | ????????# """ # @ ss +?????????? | | ????????# """ # r ss #?????????? | | ????????# """ + #####"T"### #?????????? | | ????????# #] #??????"#???????????????? | | ????????# ;[ ###########?????????????? | | ????????##+###;; " !! #?????????????? | | ????????# ## ; " ! #?????????????? | | ????????# ## ; ! " """ #?????????????? | | ######### ## ; " """???????????????? | | # # ## ; " """??????Y????????? | | # """"" # ###; # [* #?????????????? | | # """"" # #?## " %[ #?????????????? | | # """"" # ###; " ! #?????????????? | | # # """# ######?????????????? | | # """"" + " ###??????????????????? | | # """"" # "" #????????????????????? | | # """"" # ###" ""##????????????????????? | | # # #??# " ?????????????????????? | | # [ # #??? # "?????????????????????? | | # # #??? # ""????????????????????? | | ##+###### #??? # "?????????????????????? | | # # #??? +? ?????????????????????? | | # # #??? #???????????????????????? | | # + #??? ????????????????????????? | | # """ # #??????????????????????????????? | +----------------------------------------------------+ Best States ------------- Heat Dissipation 31 Energy Generation 10 Energy Capacity 125 Matter Stores 450 Matter Capacity 450 Sight Range 16 Terrain Scan Density 10 Evasion (%) 55 Item Schematics ----------------- None Robot Schematics ------------------ None Fabricated ------------ Nothing Alien Tech Used ----------------- None Achievements -------------- Dynamic Key Challenges ------------ None Game ------ Seed SeismicHeatUnit Manual? 0 Play Time 00:25:52 Cumulative 9.6 hours Start 2025.03.10 @ 13:08:45 End 2025.03.10 @ 17:16:24 Sessions 3 Manual Loads 0 Difficulty Rogue Special Mode None Game No. 10 Rogue 10 Adventurer 0 Explorer 0 Win Type - Total 0 Types 0/0/0/0/0/0/0/0/0 Lore% 7 Gallery% 21 Achievement% 14 Wizard Run 0 Options --------- Layout 1 ASCII 0 Keyboard 0 Movement Mouse Keybinds 0 Fullscreen 1 Font 32/SmallcapsGlow Map View 50x35 Zoom Use 0% Tactical HUD 1 Map Filters NONE Filters NONE Steam 1 RUN: 7fa1f126-9fdb-4e85-a8cb-dcfed90d721d